fUST/lending_fUST_20250124
["ID","MTS","AMOUNT","RATE_DAILY","PERIOD"]
[350148232,1737653438248,-500.0,0.00019178,2]
[350148233,1737653438257,-500.0,0.00019178,2]
[350148235,1737653438266,-500.0,0.00019178,2]
[350148236,1737653438275,-500.0,0.00019178,2]
[350148237,1737653438284,-500.0,0.00019178,2]
[350148238,1737653438293,-500.0,0.00019178,2]
[350148239,1737653438303,-500.0,0.00019178,2]
[350148240,1737653438313,-182.40436957,0.00019178,2]
[350148241,1737653438323,-500.0,0.00019178,2]
[350148242,1737653438332,-500.0,0.00019178,2]
[350148243,1737653438341,-500.0,0.00019178,2]
[350148244,1737653438351,-500.0,0.00019178,2]
[350148245,1737653438361,-500.0,0.00019178,2]
[350148246,1737653438370,-500.0,0.00019178,2]
[350148247,1737653438379,-500.0,0.00019178,2]
[350148248,1737653438389,-500.0,0.00019178,2]
[350148249,1737653438398,-500.0,0.00019178,2]
[350148250,1737653438408,-500.81589263,0.00019178,2]
[350148251,1737653438417,-500.0,0.00019178,2]
[350148252,1737653438427,-500.0,0.00019178,2]
[350148253,1737653438439,-500.0,0.00019178,2]
[350148254,1737653438449,-500.0,0.00019178,2]
[350148255,1737653438459,-500.0,0.00019178,2]
[350148256,1737653438468,-500.0,0.00019178,2]
[350148257,1737653438478,-500.0,0.00019178,2]
[350148258,1737653438488,-500.0,0.00019178,2]
[350148259,1737653438628,-500.0,0.00019178,2]
[350148260,1737653438638,-500.0,0.00019178,2]
[350148261,1737653438648,-500.0,0.00019178,2]
[350148263,1737653438658,-500.0,0.00019178,2]
[350148265,1737653438668,-321.46986938,0.00019178,2]
[350148266,1737653438678,-500.0,0.00019178,2]
[350148267,1737653438688,-500.0,0.00019178,2]
[350148268,1737653438698,-500.0,0.00019178,2]
[350148269,1737653438708,-500.0,0.00019178,2]
[350148270,1737653438717,-505.06115152,0.00019178,2]
[350148271,1737653438727,-500.0,0.00019178,2]
[350148272,1737653438736,-500.0,0.00019178,2]
[350148273,1737653438746,-500.0,0.00019178,2]
[350148274,1737653438755,-500.0,0.00019178,2]
[350148275,1737653438765,-500.0,0.00019178,2]
[350148276,1737653438775,-500.0,0.00019178,2]
[350148277,1737653438784,-500.0,0.00019178,2]
[350148278,1737653438794,-500.0,0.00019178,2]
[350148279,1737653438803,-500.0,0.00019178,2]
[350148280,1737653438812,-500.0,0.00019178,2]
[350148281,1737653438822,-500.0,0.00019178,2]
[350148282,1737653438831,-500.0,0.00019178,2]
[350148283,1737653438841,-501.44196796,0.00019178,2]
[350148284,1737653438850,-492.42982811,0.00019178,2]
[350148285,1737653438860,-500.0,0.00019178,2]
[350148286,1737653438869,-500.0,0.00019178,2]
[350148287,1737653438879,-500.0,0.00019178,2]
[350148288,1737653438888,-501.10158847,0.00019178,2]
[350148289,1737653438897,-500.0,0.00019178,2]
[350148290,1737653438907,-500.0,0.00019178,2]
[350148291,1737653438917,-500.68775553,0.00019178,2]
[350148292,1737653438927,-501.65898661,0.00019178,2]
[350148293,1737653438937,-500.54927778,0.00019178,2]
[350148294,1737653438946,-500.0,0.00019178,2]
[350148295,1737653438955,-502.79620716,0.00019178,2]
[350148296,1737653438964,-500.0,0.00019178,2]
[350148297,1737653438973,-500.0,0.00019178,2]
[350148298,1737653438982,-500.0,0.00019178,2]
[350148299,1737653438991,-500.0,0.00019178,2]
[350148300,1737653439001,-500.0,0.00019178,2]
[350148301,1737653439011,-500.0,0.00019178,2]
[350148302,1737653439026,-500.0,0.00019178,2]
[350148303,1737653439035,-500.0,0.00019178,2]
[350148304,1737653439045,-281.6307012,0.00019178,2]
[350148305,1737653439055,-276.44791858,0.00019178,2]
[350148306,1737653439065,-500.0,0.00019178,2]
[350148307,1737653439074,-500.0,0.00019178,2]
[350148308,1737653439084,-500.0,0.00019178,2]
[350148309,1737653439093,-500.0,0.00019178,2]
[350148310,1737653439102,-500.0,0.00019178,2]
[350148311,1737653439112,-500.0,0.00019178,2]
[350148312,1737653439122,-500.0,0.00019178,2]
[350148313,1737653439131,-500.0,0.00019178,2]
[350148314,1737653439142,-500.0,0.00019178,2]
[350148315,1737653439151,-500.0,0.00019178,2]
[350148316,1737653439161,-500.0,0.00019178,2]
[350148317,1737653439170,-403.094666,0.00019178,2]
[350148318,1737653439180,-500.0,0.00019178,2]
[350148319,1737653439193,-500.0,0.00019178,2]
[350148320,1737653439201,-506.2288619,0.00019178,2]
[350148321,1737653439211,-500.0,0.00019178,2]
[350148322,1737653439220,-500.0,0.00019178,2]
[350148323,1737653439230,-500.0,0.00019178,2]
[350148324,1737653439239,-500.0,0.00019178,2]
[350148325,1737653439249,-500.0,0.00019178,2]
[350148326,1737653439258,-500.0,0.00019178,2]
[350148327,1737653439267,-500.76774378,0.00019178,2]
[350148328,1737653439278,-500.0,0.00019178,2]
[350148329,1737653439287,-500.0,0.00019178,2]
[350148330,1737653439296,-500.0,0.00019178,2]
[350148331,1737653439305,-500.0,0.00019178,2]
[350148332,1737653439315,-500.0,0.00019178,2]
[350148333,1737653439324,-500.0,0.00019178,2]
[350148334,1737653439333,-500.0,0.00019178,2]
[350148335,1737653439342,-500.0,0.00019178,2]
[350148336,1737653439352,-204.95235096,0.00019178,2]
[350148337,1737653439362,-501.91863737,0.00019178,2]
[350148338,1737653439372,-508.87079786,0.00019178,2]
[350148339,1737653439383,-500.0,0.00019178,2]
[350148340,1737653439392,-500.0,0.00019178,2]
[350148341,1737653439402,-500.0,0.00019178,2]
[350148342,1737653439412,-500.0,0.00019178,2]
[350148343,1737653439422,-500.0,0.00019178,2]
[350148344,1737653439432,-500.32656021,0.00019178,2]
[350148345,1737653439442,-500.0,0.00019178,2]
[350148346,1737653439452,-500.0,0.00019178,2]
[350148347,1737653439461,-500.0,0.00019178,2]
[350148348,1737653439470,-500.0,0.00019178,2]
[350148349,1737653439479,-500.0,0.00019178,2]
[350148351,1737653439489,-500.9808367,0.00019178,2]
[350148353,1737653439498,-500.0,0.00019178,2]
[350148355,1737653439507,-536.23,0.00019178,2]
[350148357,1737653439516,-500.0,0.00019178,2]
[350148359,1737653439527,-503.34315716,0.00019178,2]
[350148361,1737653439539,-500.0,0.00019178,2]
[350148362,1737653439552,-500.0,0.00019178,2]
[350148364,1737653439561,-500.0,0.00019178,2]
[350148366,1737653439570,-500.0,0.00019178,2]
[350148368,1737653439580,-500.87275627,0.00019178,2]
[350148371,1737653439591,-500.0,0.00019178,2]
[350148372,1737653439601,-500.0,0.00019178,2]
[350148374,1737653439611,-500.0,0.00019178,2]
[350148376,1737653439621,-500.0,0.00019178,2]
[350148378,1737653439633,-500.0,0.00019178,2]
[350148379,1737653439643,-500.0,0.00019178,2]
[350148380,1737653439653,-500.0,0.00019178,2]
[350148381,1737653439663,-159.24557031,0.00019178,2]
[350148383,1737653439673,-500.0,0.00019178,2]
[350148384,1737653439682,-500.0,0.00019178,2]
[350148385,1737653439693,-500.0,0.00019178,2]
[350148386,1737653439703,-500.0,0.00019178,2]
[350148387,1737653439713,-500.0,0.00019178,2]
[350148388,1737653439723,-500.0,0.00019178,2]
[350148390,1737653439732,-500.52602686,0.00019178,2]
[350148392,1737653439742,-500.0,0.00019178,2]
[350148393,1737653439751,-504.57741785,0.00019178,2]
[350148394,1737653439761,-500.0,0.00019178,2]
[350148395,1737653439770,-500.0,0.00019178,2]
[350148396,1737653439780,-500.0,0.00019178,2]
[350148398,1737653439789,-500.0,0.00019178,2]
[350148399,1737653439799,-500.0,0.00019178,2]
[350148400,1737653439808,-592.03138147,0.00019178,2]
[350148401,1737653439818,-505.69140738,0.00019178,2]
[350148402,1737653439827,-500.0,0.00019178,2]
[350148403,1737653439837,-500.0,0.00019178,2]
[350148404,1737653439846,-500.0,0.00019178,2]
[350148405,1737653439856,-500.0,0.00019178,2]
[350148406,1737653439866,-500.0,0.00019178,2]
[350148407,1737653439877,-500.0,0.00019178,2]
[350148408,1737653439886,-500.0,0.00019178,2]
[350148409,1737653439895,-500.0,0.00019178,2]
[350148411,1737653439905,-500.0,0.00019178,2]
[350148412,1737653439914,-500.0,0.00019178,2]
[350148413,1737653439923,-500.0,0.00019178,2]
[350148414,1737653439932,-500.0,0.00019178,2]
[350148415,1737653439945,-500.0,0.00019178,2]
[350148416,1737653439954,-500.0,0.00019178,2]
[350148417,1737653439965,-500.0,0.00019178,2]
[350148418,1737653439973,-500.0,0.00019178,2]
[350148419,1737653439983,-500.0,0.00019178,2]
[350148420,1737653439992,-500.0,0.00019178,2]
[350148421,1737653440001,-500.0,0.00019178,2]
[350148422,1737653440012,-500.0,0.00019178,2]
[350148423,1737653440022,-500.0,0.00019178,2]
[350148424,1737653440032,-631.49941424,0.00019178,2]
[350148425,1737653440042,-500.0,0.00019178,2]
[350148426,1737653440052,-500.0,0.00019178,2]
[350148427,1737653440061,-500.0,0.00019178,2]
[350148428,1737653440071,-500.0,0.00019178,2]
[350148429,1737653440081,-500.0,0.00019178,2]
[350148430,1737653440091,-500.0,0.00019178,2]
[350148431,1737653440100,-500.0,0.00019178,2]
[350148432,1737653440109,-500.0,0.00019178,2]
[350148433,1737653440118,-500.0,0.00019178,2]
[350148434,1737653440127,-19459.96142375,0.00019178,2]
[350148435,1737653440137,-500.0,0.00019178,2]
[350148436,1737653440146,-500.0,0.00019178,2]
[350148437,1737653440155,-501.26397764,0.00019178,2]
[350148438,1737653440165,-500.0,0.00019178,2]
[350148439,1737653440174,-500.0,0.00019178,2]
[350148440,1737653440183,-500.0,0.00019178,2]
[350148441,1737653440193,-500.0,0.00019178,2]
[350148442,1737653440203,-500.0,0.00019178,2]
[350148443,1737653440213,-500.0,0.00019178,2]
[350148444,1737653440222,-500.0,0.00019178,2]
[350148445,1737653440231,-500.0,0.00019178,2]
[350148446,1737653440241,-500.0,0.00019178,2]
[350148447,1737653440250,-500.0,0.00019178,2]
[350148448,1737653440259,-500.0,0.00019178,2]
[350148449,1737653440268,-500.0,0.00019178,2]
[350148450,1737653440278,-500.0,0.00019178,2]
[350148451,1737653440288,-500.0,0.00019178,2]
[350148452,1737653440297,-500.0,0.00019178,2]
[350148453,1737653440306,-501.33398381,0.00019178,2]
[350148454,1737653440316,-500.0,0.00019178,2]
[350148455,1737653440325,-500.0,0.00019178,2]
[350148456,1737653440334,-501.82953963,0.00019178,2]
[350148457,1737653440344,-500.0,0.00019178,2]
[350148458,1737653440353,-500.0,0.00019178,2]
[350148459,1737653440363,-500.0,0.00019178,2]
[350148460,1737653440373,-500.0,0.00019178,2]
[350148461,1737653440382,-500.0,0.00019178,2]
[350148462,1737653440392,-501.08777645,0.00019178,2]
[350148463,1737653440402,-500.0,0.00019178,2]
[350148464,1737653440412,-500.0,0.00019178,2]
[350148465,1737653440422,-500.0,0.00019178,2]
[350148466,1737653440431,-500.0,0.00019178,2]
[350148467,1737653440441,-500.0,0.00019178,2]
[350148468,1737653440450,-500.0,0.00019178,2]
[350148469,1737653440460,-500.0,0.00019178,2]
[350148470,1737653440469,-500.0,0.00019178,2]
[350148471,1737653440479,-502.49058262,0.00019178,2]
[350148472,1737653440489,-500.0,0.00019178,2]
[350148473,1737653440498,-500.0,0.00019178,2]
[350148474,1737653440507,-500.0,0.00019178,2]
[350148475,1737653440516,-500.0,0.00019178,2]
[350148476,1737653440527,-500.0,0.00019178,2]
[350148477,1737653440537,-500.0,0.00019178,2]
[350148478,1737653440550,-232.51429619,0.00019178,2]
[350148479,1737653440560,-500.0,0.00019178,2]
[350148480,1737653440569,-500.0,0.00019178,2]
[350148481,1737653440579,-500.0,0.00019178,2]
[350148482,1737653440589,-500.0,0.00019178,2]
[350148483,1737653440598,-500.0,0.00019178,2]
[350148484,1737653440608,-500.0,0.00019178,2]
[350148485,1737653440617,-500.0,0.00019178,2]
[350148486,1737653440629,-500.0,0.00019178,2]
[350148487,1737653440639,-500.0,0.00019178,2]
[350148488,1737653440649,-500.0,0.00019178,2]
[350148489,1737653440659,-500.0,0.00019178,2]
[350148490,1737653440668,-500.0,0.00019178,2]
[350148491,1737653440678,-500.0,0.00019178,2]
[350148492,1737653440688,-326.63068507,0.00019178,2]
[350148493,1737653440697,-500.0,0.00019178,2]
[350148494,1737653440706,-552.27987561,0.00019178,2]
[350148495,1737653440716,-500.0,0.00019178,2]
[350148496,1737653440726,-500.0,0.00019178,2]
[350148497,1737653440737,-500.0,0.00019178,2]
[350148498,1737653440749,-500.0,0.00019178,2]
[350148499,1737653440759,-500.0,0.00019178,2]
[350148500,1737653440768,-500.0,0.00019178,2]
[350148501,1737653440778,-506.19069059,0.00019178,2]
[350148502,1737653440787,-500.0,0.00019178,2]
[350148503,1737653440797,-500.0,0.00019178,2]
[350148504,1737653440807,-500.0,0.00019178,2]
[350148505,1737653440816,-500.0,0.00019178,2]
[350148506,1737653440826,-500.0,0.00019178,2]
[350148507,1737653440836,-574.88576575,0.00019178,2]
[350148508,1737653440846,-1701.79,0.00019178,2]
[350148509,1737653440856,-1701.79,0.00019178,2]
[350148510,1737653440866,-1701.79,0.00019178,2]
[350148511,1737653440875,-1701.79,0.00019178,2]
[350148512,1737653440885,-1701.79,0.00019178,2]
[350148513,1737653440895,-1701.79,0.00019178,2]
[350148514,1737653440904,-1701.79,0.00019178,2]
[350148515,1737653440914,-1701.79,0.00019178,2]
[350148516,1737653440924,-162.09,0.00019178,2]
[350148517,1737653440934,-167.100176,0.00019178,2]
[350148518,1737653440944,-1701.79,0.00019296,3]
[350148519,1737653440954,-501.17520655,0.000193,2]
[350148520,1737653440963,-500.0,0.00019312,2]
[350148521,1737653440973,-500.0,0.00019313,3]
[350148522,1737653440983,-500.0,0.00019313,3]
[350148523,1737653440992,-500.0,0.00019313,3]
[350148524,1737653441002,-1701.79,0.00019314,3]
[350148525,1737653441012,-500.0,0.00019315,3]
[350148526,1737653441022,-500.0,0.00019315,3]
[350148527,1737653441031,-500.0,0.00019315,3]
[350148528,1737653441041,-500.0,0.00019315,3]
[350148529,1737653441051,-500.0,0.00019315,3]
[350148530,1737653441060,-500.0,0.00019315,3]
[350148531,1737653441070,-500.0,0.00019315,3]
[350148532,1737653441079,-500.0,0.00019315,3]
[350148533,1737653441088,-500.0,0.00019315,3]
[350148534,1737653441098,-500.0,0.00019315,3]
[350148535,1737653441107,-500.0,0.00019315,3]
[350148536,1737653441116,-500.0,0.00019315,3]
[350148537,1737653441126,-500.0,0.00019315,3]
[350148538,1737653441135,-500.0,0.00019315,3]
[350148539,1737653441144,-500.0,0.00019315,3]
[350148540,1737653441153,-500.0,0.00019315,3]
[350148541,1737653441163,-500.0,0.00019315,3]
[350148542,1737653441172,-500.0,0.00019315,3]
[350148543,1737653441181,-500.0,0.00019315,3]
[350148544,1737653441191,-500.0,0.00019315,3]
[350148545,1737653441200,-500.0,0.00019315,3]
[350148546,1737653441209,-500.0,0.00019315,3]
[350148547,1737653441218,-491.24341778,0.00019315,3]
[350148548,1737653441228,-500.0,0.00019315,3]
[350148549,1737653441237,-500.0,0.00019315,3]
[350148550,1737653441247,-500.0,0.00019315,3]
[350148551,1737653441256,-500.0,0.00019315,3]
[350148552,1737653441265,-599.25,0.00019315,3]
[350148553,1737653441276,-500.0,0.00019315,3]
[350148554,1737653441286,-500.0,0.00019315,3]
[350148555,1737653441296,-500.0,0.00019315,3]
[350148556,1737653441305,-500.0,0.00019315,3]
[350148557,1737653441315,-593.26171229,0.00019315,3]
[350148558,1737653441325,-500.0,0.00019315,3]
[350148559,1737653441336,-500.0,0.00019315,3]
[350148560,1737653441346,-500.0,0.00019315,3]
[350148561,1737653441435,-500.0,0.00019315,3]
[350148562,1737653441456,-500.0,0.00019315,3]
[350148563,1737653441466,-500.0,0.00019315,3]
[350148564,1737653441476,-339.41001793,0.00019315,3]
[350148565,1737653441485,-500.0,0.00019315,3]
[350148566,1737653441495,-500.0,0.00019315,3]
[350148567,1737653441504,-500.0,0.00019315,3]
[350148568,1737653441514,-591.43303547,0.00019315,3]
[350148569,1737653441523,-500.0,0.00019315,3]
[350148570,1737653441532,-616.94,0.00019315,3]
[350148571,1737653441545,-500.0,0.00019315,3]
[350148572,1737653441554,-500.0,0.00019315,3]
[350148573,1737653441564,-500.0,0.00019315,3]
[350148574,1737653441574,-500.0,0.00019315,3]
[350148575,1737653441583,-500.0,0.00019315,3]
[350148576,1737653441593,-500.0,0.00019315,3]
[350148577,1737653441603,-500.0,0.00019315,3]
[350148578,1737653441612,-500.0,0.00019315,3]
[350148579,1737653441623,-500.0,0.00019315,3]
[350148580,1737653441634,-500.0,0.00019315,3]
[350148581,1737653441644,-500.0,0.00019315,3]
[350148582,1737653441653,-500.0,0.00019315,3]
[350148583,1737653441663,-500.0,0.00019315,3]
[350148584,1737653441672,-500.0,0.00019315,3]
[350148585,1737653441682,-500.0,0.00019315,3]
[350148586,1737653441692,-500.0,0.00019315,3]
[350148587,1737653441702,-500.0,0.00019315,3]
[350148588,1737653441711,-500.0,0.00019315,3]
[350148589,1737653441721,-500.0,0.00019315,3]
[350148590,1737653441731,-500.0,0.00019315,3]
[350148591,1737653441740,-500.0,0.00019315,3]
[350148592,1737653441749,-500.0,0.00019315,3]
[350148593,1737653441758,-500.0,0.00019315,3]
[350148594,1737653441767,-500.0,0.00019315,3]
[350148595,1737653441777,-500.0,0.00019315,3]
[350148596,1737653441786,-500.0,0.00019315,3]
[350148597,1737653441795,-500.0,0.00019315,3]
[350148598,1737653441805,-500.0,0.00019315,3]
[350148599,1737653441814,-500.0,0.00019315,3]
[350148600,1737653441825,-500.0,0.00019315,3]
[350148601,1737653441834,-500.0,0.00019315,3]
[350148602,1737653441843,-500.0,0.00019315,3]
[350148603,1737653441853,-500.0,0.00019315,3]
[350148604,1737653441862,-500.0,0.00019315,3]
[350148605,1737653441871,-500.0,0.00019315,3]
[350148606,1737653441881,-500.0,0.00019315,3]
[350148607,1737653441890,-500.0,0.00019315,3]
[350148608,1737653441900,-500.0,0.00019315,3]
[350148609,1737653441909,-500.0,0.00019315,3]
[350148610,1737653441919,-500.0,0.00019315,3]
[350148611,1737653441928,-500.0,0.00019315,3]
[350148612,1737653441937,-500.0,0.00019315,3]
[350148613,1737653441946,-500.0,0.00019315,3]
[350148614,1737653441956,-500.0,0.00019315,3]
[350148615,1737653441966,-500.0,0.00019315,3]
[350148616,1737653441975,-500.0,0.00019315,3]
[350148617,1737653441984,-500.0,0.00019315,3]
[350148618,1737653441993,-500.0,0.00019315,3]
[350148619,1737653442004,-500.0,0.00019315,3]
[350148620,1737653442016,-1701.79,0.0001945,3]
[350148621,1737653442026,-500.0,0.00019451,3]
[350148622,1737653442036,-500.0,0.00019451,3]
[350148623,1737653442046,-500.0,0.00019451,3]
[350148624,1737653442058,-500.0,0.00019452,3]
[350148625,1737653442067,-500.0,0.00019452,3]
[350148626,1737653442076,-500.0,0.00019452,3]
[350148627,1737653442086,-449.24958018,0.00019452,3]
[350148628,1737653442095,-500.0,0.00019452,3]
[350148629,1737653442104,-335.30052473,0.00019452,3]
[350148630,1737653442114,-500.0,0.00019452,3]
[350148631,1737653442124,-494.70434754,0.00019452,3]
[350148632,1737653442133,-500.0,0.00019452,3]
[350148633,1737653442143,-500.0,0.00019452,3]
[350148634,1737653442154,-315.84,0.00019452,3]
[350148635,1737653442163,-500.0,0.00019452,3]
[350148636,1737653442173,-500.0,0.00019452,3]
[350148637,1737653442182,-243.64,0.00019452,3]
[350148638,1737653442192,-488.10882255,0.00019452,3]
[350148639,1737653442202,-500.0,0.00019452,3]
[350148640,1737653442212,-500.0,0.00019452,3]
[350148641,1737653442222,-500.0,0.00019452,3]
[350148642,1737653442230,-500.0,0.00019452,3]
[350148643,1737653442240,-500.0,0.00019452,3]
[350148644,1737653442250,-500.0,0.00019452,3]
[350148645,1737653442263,-500.0,0.00019588,2]
[350148646,1737653442272,-236.73374679,0.00019588,2]
[350148647,1737653442282,-431.36630946,0.00019589,3]
[350148648,1737653442292,-500.0,0.00019589,3]
[350148649,1737653442301,-500.0,0.00019589,3]
[350148650,1737653442311,-500.0,0.00019589,3]
[350148651,1737653442321,-500.0,0.00019589,3]
[350148652,1737653442331,-500.0,0.00019589,3]
[350148653,1737653442341,-500.0,0.00019589,3]
[350148654,1737653442351,-292.701,0.00019679,2]
[350148655,1737653442361,-500.0,0.00019726,3]
[350148656,1737653442370,-509.1,0.00019726,3]
[350148657,1737653442379,-500.0,0.00019726,3]
[350148659,1737653442389,-500.0,0.00019726,3]
[350148660,1737653442398,-434.87,0.00019726,3]
[350148661,1737653442407,-500.0,0.00019726,3]
[350148662,1737653442416,-638.53682832,0.00019767,2]
[350148663,1737653442425,-706.43,0.000198,2]
[350148664,1737653442435,-321.30757603,0.0001986,2]
[350148666,1737653442445,-500.0,0.00019861,3]
[350148667,1737653442455,-500.0,0.00019861,3]
[350148668,1737653442463,-543.2975498,0.00019861,3]
[350148669,1737653442473,-449.76000001,0.00019863,3]
[350148670,1737653442482,-500.0,0.00019863,3]
[350148671,1737653442492,-500.0,0.00019863,3]
[350148672,1737653442501,-546.48,0.00019863,3]
[350148673,1737653442511,-597.981,0.00019888,7]
[350148674,1737653442521,-234.78746805,0.000199,2]
[350148675,1737653442531,-1701.79,0.00019998,3]
[350148677,1737653442540,-500.0,0.00019999,3]
[350148679,1737653442555,-500.0,0.00019999,3]
[350148681,1737653442564,-500.0,0.00019999,3]
[350148683,1737653442575,-255.96,0.00019999,3]
[350148685,1737653442584,-500.0,0.00019999,3]
[350148686,1737653442594,-500.0,0.00019999,3]
[350148687,1737653442604,-500.0,0.00019999,3]
[350148689,1737653442613,-416.39665413,0.00019999,3]
[350148691,1737653442625,-1701.79,0.00019999,3]
[350148692,1737653442634,-1701.79,0.00019999,3]
[350148693,1737653442644,-1701.79,0.00019999,3]
[350148694,1737653442653,-1701.79,0.00019999,3]
[350148695,1737653442663,-1701.79,0.00019999,3]
[350148697,1737653442672,-99900.00000045,0.0002,2]
[350148698,1737653442681,-160.0,0.0002,2]
[350148699,1737653442690,-160.0,0.0002,3]
[350148700,1737653442700,-2566.14200454,0.0002,2]
[350148701,1737653442710,-354.68491466,0.0002,2]
[350148702,1737653442719,-401.36,0.0002,3]
[350148704,1737653442729,-500.0,0.0002,3]
[350148706,1737653442739,-731.69639622,0.00020031,2]
[350148707,1737653442748,-234.78746801,0.00020038,2]
[350148708,1737653442757,-500.0,0.00020136,3]
[350148709,1737653442767,-234.78746801,0.00020176,2]
[350148710,1737653442776,-500.0,0.00020273,3]
[350148711,1737653442785,-234.78746801,0.00020314,2]
[350148712,1737653442795,-500.0,0.0002041,3]
[350148713,1737653442804,-400.0,0.00020447,2]
[350148714,1737653442813,-234.78746801,0.00020452,2]
[350148715,1737653442823,-638.53682832,0.00020456,2]
[350148716,1737653442832,-1030.23495999,0.00020547,2]
[350148718,1737653442841,-342.16456706,0.00020547,3]
[350148719,1737653442850,-234.78746801,0.0002059,2]
[350148721,1737653442860,-420.0,0.00020709,2]
[350148722,1737653442868,-234.78746801,0.00020728,2]
[350148723,1737653442878,-234.78746801,0.00020866,2]
[350148724,1737653442887,-234.78746801,0.00021003,2]
[350148725,1737653442896,-234.78746801,0.00021141,2]
[350148726,1737653442906,-638.53682832,0.00021145,2]
[350148727,1737653442915,-234.78746801,0.00021279,2]
[350148728,1737653442925,-234.78746801,0.00021417,2]
[350148729,1737653442934,-234.78746801,0.00021555,2]
[350148730,1737653442944,-150.0,0.00021656,2]
[350148732,1737653442954,-234.78746801,0.00021693,3]
[350148733,1737653442963,-234.78746801,0.00021831,3]
[350148734,1737653442971,-638.53682832,0.00021833,2]
[350148735,1737653442981,-500.0,0.00021873,2]
[350148736,1737653442991,-1200.0,0.00021876,2]
[350148737,1737653443000,-1701.79,0.00021892,3]
[350148738,1737653443009,-2315.0,0.00021893,2]
[350148739,1737653443018,-7926.77721265,0.000219,5]
[350148740,1737653443038,-2503.77396881,0.000219,5]
[350148741,1737653443049,-6416.05754945,0.000219,5]
[350148742,1737653443060,-463.60001,0.000219,5]
[350148744,1737653443071,-4206.51415787,0.000219,5]
[350148745,1737653443081,-4417.76295972,0.000219,5]
[350148746,1737653443090,-95464.87597233,0.000219,2]
[350148747,1737653443101,-422211.95431846,0.000219,2]
[350148748,1737653443128,-500.0,0.00019178,2]
[350148749,1737653443139,-24310.5729712,0.000219,2]
[350148750,1737653443150,-28005.63282974,0.000219,2]
[350148751,1737653443161,-3106.5113927,0.000219,2]
[350148752,1737653443173,-130509.07213292,0.000219,2]
[350148753,1737653443206,-395.0,0.00021656,2]
[350148754,1737653443216,-649.0,0.000219,2]
[350148755,1737653443231,-11426.91290224,0.000219,2]
[350148786,1737653878362,400.0,0.00013973,2]
[350148794,1737654116531,3359.55,0.00024,120]
[350148822,1737654385170,219.14704282,0.0002399,120]
[350148823,1737654407102,-305.566435,0.00017344,2]
[350148824,1737654407128,-305.566435,0.00017519,2]
[350148825,1737654407150,-195.292086,0.00017808,2]
[350148826,1737654407171,-300.0,0.00018601,2]
[350148827,1737654407192,-12622.101703,0.00018602,2]
[350148828,1737654437181,-1878.29684184,0.00018416,2]
[350148829,1737654437208,-300.0,0.00018601,2]
[350148830,1737654437236,-6244.8430085,0.00018602,2]
[350148831,1737654437262,-8200.7579143,0.00018602,2]
[350148832,1737654437287,-239.45131062,0.00019078,2]
[350148833,1737654437312,-152.0,0.00019121,2]